[Event "16th Deltalift Open 2019"]
[Site "Halmstad"]
[Date "2019.05.30"]
[Round "4.3"]
[White "Sjodahl, Pontus"]
[Black "Malmstig, Erik"]
[Result "0-1"]
[ECO "E46"]
[WhiteElo "2435"]
[BlackElo "2352"]
[Annotator "ChessBase"]
[PlyCount "71"]
[EventDate "2019.05.30"]
[EventType "swiss"]
[EventCountry "SWE"]
[SourceTitle "playchess.com"]
[Source "ChessBase"]
[SourceQuality "1"]
[TimeControl "1800+12"]

1. d4 {[%emt 0:00:00]} Nf6 {[%emt 0:00:00]} 2. c4 {[%emt 0:00:00]} e6 {[%emt 0:00:00]} 3. Nc3 {[%emt 0:00:05]} Bb4 {[%emt 0:00:00]} 4. e3 {[%emt 0:00:06]} O-O {[%emt 0:00:02]} 5. Nge2 {[%emt 0:00:07]} Re8 {[%emt 0:00:07]} 6. a3 {[%emt 0:00:25]} Bf8 {[%emt 0:00:04]} 7. Nf4 {[%emt 0:01:18]} Nc6 {[%emt 0:02:24]} 8. Be2 {[%emt 0:00:29]} e5 {[%emt 0:00:44]} 9. dxe5 {[%emt 0:00:35]} Nxe5 {[%emt 0:00:03]} 10. b3 {[%emt 0:01:02]} b6 {[%emt 0:00:12]} 11. O-O {[%emt 0:00:44]} Bb7 {[%emt 0:00:18]} 12. Bb2 {[%emt 0:00:11]} c6 {[%emt 0:00:29]} 13. Rc1 {[%emt 0:01:18]} Qc7 {[%emt 0:00:52]} 14. Re1 {[%emt 0:02:48]} Rad8 {[%emt 0:00:04]} 15. Bf1 {[%emt 0:00:25]} Qb8 {[%emt 0:00:09]} 16. g3 {[%emt 0:03:27]} d5 {[%emt 0:01:22]} 17. cxd5 {[%emt 0:00:04]} cxd5 {[%emt 0:00:11]} 18. Bg2 {[%emt 0:00:19]} d4 {[%emt 0:00:33]} 19. exd4 {[%emt 0:00:23]} Nf3+ {[%emt 0:01:29]} 20. Bxf3 {[%emt 0:00:20]} Rxe1+ {[%emt 0:00:04]} 21. Qxe1 {[%emt 0:00:03]} Bxf3 {[%emt 0:00:05]} 22. Qe3 {[%emt 0:01:11]} Ba8 {[%emt 0:03:22]} 23. Rd1 {[%emt 0:06:40]} Re8 {[%emt 0:05:50]} 24. Qd2 {[%emt 0:01:17]} Qc8 {[%emt 0:02:34]} 25. d5 {[%emt 0:04:24]} h6 {[%emt 0:03:46]} 26. b4 {[%emt 0:05:45]} Qg4 {[%emt 0:02:47]} 27. Kg2 {[%emt 0:01:01]} Bd6 {[%emt 0:02:32]} 28. f3 {[%emt 0:00:23]} Qf5 {[%emt 0:01:30]} 29. Qd3 {[%emt 0:00:07]} Qg5 {[%emt 0:00:28]} 30. Nh3 {[%emt 0:00:12]} Qe5 {[%emt 0:00:33]} 31. Nf2 {[%emt 0:00:13]} Nxd5 {[%emt 0:02:05]} 32. Ng4 {[%emt 0:00:32]} Nf4+ {[%emt 0:01:25]} 33. gxf4 {[%emt 0:00:15]} Qxf4 {[%emt 0:00:00]} 34. Nd5 {[%emt 0:00:24]} Bxd5 {[%emt 0:00:06]} 35. Qxd5 {[%emt 0:00:11]} Re2+ {[%emt 0:00:03]} 36. Kg1 0-1

[Event "16th Deltalift Open 2019"]
[Site "Halmstad"]
[Date "2019.05.30"]
[Round "4.4"]
[White "Rydstrom, Tom"]
[Black "Brynell, Stellan"]
[Result "0-1"]
[ECO "C11"]
[WhiteElo "2365"]
[BlackElo "2406"]
[Annotator "ChessBase"]
[PlyCount "82"]
[EventDate "2019.05.30"]
[EventType "swiss"]
[EventCountry "SWE"]
[SourceTitle "playchess.com"]
[Source "ChessBase"]
[SourceQuality "1"]
[TimeControl "1800+12"]

1. e4 {[%emt 0:00:00]} e6 {[%emt 0:00:00]} 2. d4 {[%emt 0:00:00]} d5 {[%emt 0:00:00]} 3. Nc3 {[%emt 0:00:00]} Nf6 {[%emt 0:00:00]} 4. e5 {[%emt 0:00:25]} Nfd7 {[%emt 0:00:02]} 5. f4 {[%emt 0:00:01]} c5 {[%emt 0:00:03]} 6. Nf3 {[%emt 0:00:02]} Nc6 {[%emt 0:00:02]} 7. Be3 {[%emt 0:00:02]} cxd4 {[%emt 0:00:03]} 8. Nxd4 {[%emt 0:00:02]} Bc5 {[%emt 0:00:02]} 9. Qd2 {[%emt 0:00:15]} O-O {[%emt 0:00:03]} 10. O-O-O {[%emt 0:00:47]} a6 {[%emt 0:00:02]} 11. Kb1 {[%emt 0:01:01]} Nxd4 {[%emt 0:00:07]} 12. Bxd4 {[%emt 0:00:02]} b5 {[%emt 0:00:02]} 13. h4 {[%emt 0:00:27]} b4 {[%emt 0:00:14]} 14. Na4 {[%emt 0:00:56]} Bxd4 {[%emt 0:00:03]} 15. Qxd4 {[%emt 0:00:01]} a5 {[%emt 0:00:06]} 16. h5 {[%emt 0:01:20]} Qc7 {[%emt 0:05:07]} 17. Rh3 {[%emt 0:01:51]} Ba6 {[%emt 0:00:57]} 18. h6 {[%emt 0:10:32]} g6 {[%emt 0:03:19]} 19. Bd3 {[%emt 0:00:14]} Bxd3 {[%emt 0:01:29]} 20. Rhxd3 {[%emt 0:00:07]} Rfc8 {[%emt 0:00:10]} 21. R1d2 {[%emt 0:00:10]} Ra6 {[%emt 0:01:15]} 22. Qf2 {[%emt 0:01:19]} Rc6 {[%emt 0:00:37]} 23. Re3 {[%emt 0:01:52]} f5 {[%emt 0:09:30]} 24. Re1 {[%emt 0:00:44]} Nc5 {[%emt 0:00:47]} 25. Nxc5 {[%emt 0:00:25]} Rxc5 {[%emt 0:00:01]} 26. g4 {[%emt 0:03:08]} fxg4 {[%emt 0:01:09]} 27. Qe2 {[%emt 0:00:01]} Rf8 {[%emt 0:00:26]} 28. Qxg4 {[%emt 0:00:51]} Rf5 {[%emt 0:00:02]} 29. b3 {[%emt 0:02:56]} a4 {[%emt 0:00:45]} 30. Rf2 {[%emt 0:03:05]} a3 {[%emt 0:02:48]} 31. Qd1 {[%emt 0:00:14]} Rc3 {[%emt 0:00:59]} 32. Qd4 {[%emt 0:01:21]} Qc5 {[%emt 0:00:02]} 33. Qd2 {[%emt 0:00:46]} Rh3 {[%emt 0:02:36]} 34. Rc1 {[%emt 0:00:22]} d4 {[%emt 0:00:23]} 35. Rd1 {[%emt 0:00:12]} Rxh6 {[%emt 0:00:03]} 36. Qd3 {[%emt 0:00:34]} Rh4 {[%emt 0:00:51]} 37. Qa6 {[%emt 0:00:49]} Qc3 {[%emt 0:00:53]} 38. Qxe6+ {[%emt 0:00:01]} Rf7 {[%emt 0:01:07]} 39. Kc1 {[%emt 0:00:01]} d3 {[%emt 0:00:01]} 40. Rg1 {[%emt 0:00:43]} Qa1+ {[%emt 0:00:42]} 41. Kd2 {[%emt 0:00:03]} Qxg1 {[%emt 0:00:02]} 0-1

[Event "16th Deltalift Open 2019"]
[Site "Halmstad"]
[Date "2019.05.30"]
[Round "4.5"]
[White "Jepson, Christian"]
[Black "Ziegler, Nathalie"]
[Result "1-0"]
[ECO "E92"]
[WhiteElo "2395"]
[BlackElo "1789"]
[Annotator "ChessBase"]
[PlyCount "68"]
[EventDate "2019.05.30"]
[EventType "swiss"]
[EventCountry "SWE"]
[SourceTitle "playchess.com"]
[Source "ChessBase"]
[SourceQuality "1"]
[TimeControl "1800+12"]

1. d4 {[%emt 0:00:00]} Nf6 {[%emt 0:00:00]} 2. c4 {[%emt 0:00:46]} g6 {[%emt 0:00:00]} 3. Nc3 {[%emt 0:00:05]} Bg7 {[%emt 0:00:00]} 4. e4 {[%emt 0:00:06]} d6 {[%emt 0:00:01]} 5. Be2 {[%emt 0:00:14]} O-O {[%emt 0:00:06]} 6. Nf3 {[%emt 0:00:03]} e5 {[%emt 0:00:15]} 7. d5 {[%emt 0:00:05]} a5 {[%emt 0:00:31]} 8. Bg5 {[%emt 0:00:06]} Na6 {[%emt 0:00:19]} 9. Nd2 {[%emt 0:00:05]} Nc5 {[%emt 0:00:48]} 10. b3 {[%emt 0:00:26]} h6 {[%emt 0:01:49]} 11. Be3 {[%emt 0:00:05]} Bd7 {[%emt 0:00:32]} 12. a3 {[%emt 0:04:44]} b6 {[%emt 0:02:09]} 13. b4 {[%emt 0:03:33]} axb4 {[%emt 0:00:25]} 14. axb4 {[%emt 0:00:02]} Nb7 {[%emt 0:00:42]} 15. O-O {[%emt 0:00:33]} Qe7 {[%emt 0:05:48]} 16. Nb5 {[%emt 0:03:31]} Rxa1 {[%emt 0:01:33]} 17. Qxa1 {[%emt 0:00:03]} Bg4 {[%emt 0:01:55]} 18. Bxg4 {[%emt 0:05:18]} Nxg4 {[%emt 0:00:03]} 19. Qa7 {[%emt 0:00:11]} Nxe3 {[%emt 0:05:57]} 20. fxe3 {[%emt 0:00:02]} Qg5 {[%emt 0:00:01]} 21. Rf3 {[%emt 0:01:02]} Nd8 {[%emt 0:05:16]} 22. Qxc7 {[%emt 0:01:19]} f5 {[%emt 0:00:27]} 23. Qxd6 {[%emt 0:00:11]} Qg4 {[%emt 0:03:16]} 24. h3 {[%emt 0:04:25]} Qh5 {[%emt 0:01:27]} 25. Qxb6 {[%emt 0:01:29]} Nf7 {[%emt 0:00:25]} 26. Nc7 {[%emt 0:02:21]} Ng5 {[%emt 0:00:12]} 27. Rf1 {[%emt 0:01:05]} Qe2 {[%emt 0:00:34]} 28. Nf3 {[%emt 0:01:07]} Nxe4 {[%emt 0:00:20]} 29. Qxg6 {[%emt 0:00:40]} Qxe3+ {[%emt 0:00:04]} 30. Kh2 {[%emt 0:00:16]} Qe2 {[%emt 0:00:19]} 31. Ne6 {[%emt 0:00:16]} Rf7 {[%emt 0:00:33]} 32. Nxe5 {[%emt 0:00:19]} Ra7 {[%emt 0:00:06]} 33. Rxf5 {[%emt 0:00:12]} Kh8 {[%emt 0:00:16]} 34. Nxg7 {[%emt 0:00:50]} Ng5 {[%emt 0:00:25]} 1-0

[Event "16th Deltalift Open 2019"]
[Site "Halmstad"]
[Date "2019.05.30"]
[Round "4.6"]
[White "Bellon Lopez, Juan Manuel"]
[Black "Pantzar, Milton"]
[Result "0-1"]
[ECO "D02"]
[WhiteElo "2345"]
[BlackElo "2390"]
[Annotator "ChessBase"]
[PlyCount "94"]
[EventDate "2019.05.30"]
[EventType "swiss"]
[EventCountry "SWE"]
[SourceTitle "playchess.com"]
[Source "ChessBase"]
[SourceQuality "1"]
[TimeControl "1800+12"]

1. d4 {[%emt 0:00:00]} d5 {[%emt 0:00:00]} 2. Nf3 {[%emt 0:00:05]} Nf6 {[%emt 0:00:02]} 3. Bf4 {[%emt 0:00:03]} e6 {[%emt 0:00:16]} 4. e3 {[%emt 0:00:02]} c5 {[%emt 0:00:28]} 5. c3 {[%emt 0:00:02]} Be7 {[%emt 0:00:34]} 6. Ne5 {[%emt 0:00:21]} Nbd7 {[%emt 0:00:58]} 7. h4 {[%emt 0:02:09]} Nxe5 {[%emt 0:02:00]} 8. dxe5 {[%emt 0:00:08]} Nd7 {[%emt 0:00:11]} 9. Nd2 {[%emt 0:01:29]} O-O {[%emt 0:01:48]} 10. Bd3 {[%emt 0:00:24]} f5 {[%emt 0:00:56]} 11. exf6 {[%emt 0:00:14]} Nxf6 {[%emt 0:00:52]} 12. Nf3 {[%emt 0:00:30]} Bd6 {[%emt 0:01:21]} 13. Be5 {[%emt 0:01:54]} Qc7 {[%emt 0:00:22]} 14. Bxd6 {[%emt 0:02:32]} Qxd6 {[%emt 0:00:03]} 15. Qa4 {[%emt 0:02:55]} e5 {[%emt 0:01:55]} 16. Ng5 {[%emt 0:03:27]} e4 {[%emt 0:01:39]} 17. Be2 {[%emt 0:00:27]} a6 {[%emt 0:05:01]} 18. O-O-O {[%emt 0:01:26]} b5 {[%emt 0:00:40]} 19. Qc2 {[%emt 0:04:35]} Qe5 {[%emt 0:01:44]} 20. Kb1 {[%emt 0:01:59]} Rb8 {[%emt 0:00:50]} 21. f4 {[%emt 0:02:32]} exf3 {[%emt 0:00:24]} 22. Bd3 {[%emt 0:00:20]} h6 {[%emt 0:04:22]} 23. Bh7+ {[%emt 0:01:03]} Kh8 {[%emt 0:00:01]} 24. gxf3 {[%emt 0:00:57]} Qxe3 {[%emt 0:01:17]} 25. Bg6 {[%emt 0:00:36]} Rb7 {[%emt 0:00:52]} 26. Rde1 {[%emt 0:00:49]} Qf4 {[%emt 0:00:04]} 27. Ne6 {[%emt 0:00:49]} Bxe6 {[%emt 0:00:08]} 28. Rxe6 {[%emt 0:00:01]} Qxf3 {[%emt 0:00:40]} 29. Rhe1 {[%emt 0:00:01]} Qf4 {[%emt 0:01:23]} 30. h5 {[%emt 0:00:11]} b4 {[%emt 0:00:28]} 31. cxb4 {[%emt 0:00:35]} Qxb4 {[%emt 0:00:18]} 32. R6e2 {[%emt 0:01:00]} Rfb8 {[%emt 0:00:59]} 33. Ka1 {[%emt 0:00:44]} c4 {[%emt 0:01:07]} 34. Qf5 {[%emt 0:00:04]} c3 {[%emt 0:00:41]} 35. b3 {[%emt 0:00:34]} d4 {[%emt 0:01:13]} 36. Qd3 {[%emt 0:00:30]} Rc7 {[%emt 0:00:18]} 37. Rc2 {[%emt 0:00:32]} a5 {[%emt 0:00:07]} 38. Qg3 {[%emt 0:00:20]} Rcc8 {[%emt 0:00:26]} 39. Bf7 {[%emt 0:00:31]} Qb7 {[%emt 0:00:52]} 40. Bc4 {[%emt 0:00:50]} a4 {[%emt 0:00:09]} 41. Rg1 {[%emt 0:00:12]} axb3 {[%emt 0:00:17]} 42. Bxb3 {[%emt 0:00:02]} Ne4 {[%emt 0:00:09]} 43. Qd3 {[%emt 0:00:16]} Nd2 {[%emt 0:00:22]} 44. Qxd4 Nf3 {[%emt 0:00:03]} 45. Qf2 {[%emt 0:00:30]} Nxg1 {[%emt 0:00:02]} 46. Qxg1 {[%emt 0:00:01]} Ra8 {[%emt 0:00:07]} 47. Qg4 {[%emt 0:00:22]} Qxb3 0-1

[Event "16th Deltalift Open 2019"]
[Site "Halmstad"]
[Date "2019.05.30"]
[Round "4.8"]
[White "Kucuksari, Kaan"]
[Black "Ask, Josef"]
[Result "1-0"]
[ECO "E71"]
[WhiteElo "2320"]
[BlackElo "2149"]
[Annotator "ChessBase"]
[PlyCount "81"]
[EventDate "2019.05.30"]
[EventType "swiss"]
[EventCountry "SWE"]
[SourceTitle "playchess.com"]
[Source "ChessBase"]
[SourceQuality "1"]
[TimeControl "1800+12"]

1. d4 {[%emt 0:00:00]} Nf6 {[%emt 0:00:00]} 2. c4 {[%emt 0:00:00]} g6 {[%emt 0:00:00]} 3. Nc3 {[%emt 0:00:03]} Bg7 {[%emt 0:00:00]} 4. e4 {[%emt 0:00:02]} d6 {[%emt 0:00:00]} 5. h3 {[%emt 0:00:08]} O-O {[%emt 0:00:06]} 6. Nf3 {[%emt 0:00:02]} Na6 {[%emt 0:00:18]} 7. Bg5 {[%emt 0:00:07]} Qe8 {[%emt 0:00:40]} 8. Nd2 {[%emt 0:00:29]} e5 {[%emt 0:00:20]} 9. d5 {[%emt 0:00:03]} Nd7 {[%emt 0:00:10]} 10. g4 {[%emt 0:02:16]} Ndc5 {[%emt 0:00:12]} 11. Rg1 {[%emt 0:00:37]} Kh8 {[%emt 0:00:47]} 12. a3 {[%emt 0:00:27]} Bd7 {[%emt 0:00:10]} 13. b4 {[%emt 0:05:06]} Na4 {[%emt 0:00:14]} 14. Nb5 {[%emt 0:02:29]} Bxb5 {[%emt 0:01:44]} 15. cxb5 {[%emt 0:00:12]} Nc3 {[%emt 0:00:02]} 16. Qb3 {[%emt 0:03:41]} Nxb5 {[%emt 0:00:09]} 17. Qa4 {[%emt 0:00:03]} Nd4 {[%emt 0:00:52]} 18. Qxe8 {[%emt 0:00:02]} Raxe8 {[%emt 0:00:40]} 19. Rc1 {[%emt 0:00:31]} f6 {[%emt 0:00:22]} 20. Be3 {[%emt 0:00:09]} Rf7 {[%emt 0:00:25]} 21. Bxa6 {[%emt 0:10:29]} bxa6 {[%emt 0:00:03]} 22. f3 {[%emt 0:01:47]} a5 {[%emt 0:00:44]} 23. bxa5 {[%emt 0:01:45]} Rb8 {[%emt 0:00:08]} 24. Bxd4 {[%emt 0:02:37]} exd4 {[%emt 0:00:01]} 25. Ke2 {[%emt 0:00:00]} Bh6 {[%emt 0:00:25]} 26. Rb1 {[%emt 0:00:02]} Re8 {[%emt 0:01:29]} 27. Rb7 {[%emt 0:00:14]} a6 {[%emt 0:00:24]} 28. Nc4 {[%emt 0:00:21]} Ree7 {[%emt 0:00:12]} 29. Kd3 {[%emt 0:01:05]} f5 {[%emt 0:01:17]} 30. exf5 {[%emt 0:00:01]} gxf5 {[%emt 0:00:22]} 31. g5 {[%emt 0:00:01]} Bf8 {[%emt 0:01:02]} 32. Ra7 {[%emt 0:00:10]} c6 {[%emt 0:00:51]} 33. Rxe7 {[%emt 0:01:00]} Rxe7 {[%emt 0:00:23]} 34. dxc6 {[%emt 0:00:24]} d5 {[%emt 0:00:28]} 35. Nb6 {[%emt 0:00:08]} Rc7 {[%emt 0:00:43]} 36. Rc1 {[%emt 0:00:06]} Bxa3 {[%emt 0:00:08]} 37. Nxd5 {[%emt 0:00:15]} Rc8 {[%emt 0:00:12]} 38. Rc2 {[%emt 0:00:07]} Bd6 {[%emt 0:00:21]} 39. c7 {[%emt 0:00:01]} Kg7 {[%emt 0:00:15]} 40. Rc6 {[%emt 0:00:06]} Be5 {[%emt 0:00:04]} 41. f4 {[%emt 0:00:03]} 1-0

[Event "16th Deltalift Open 2019"]
[Site "Halmstad"]
[Date "2019.05.30"]
[Round "4.9"]
[White "Lindhe, Magnus"]
[Black "Ziegler, Ari"]
[Result "0-1"]
[ECO "A40"]
[WhiteElo "2173"]
[BlackElo "2300"]
[Annotator "ChessBase"]
[PlyCount "68"]
[EventDate "2019.05.30"]
[EventType "swiss"]
[EventCountry "SWE"]
[SourceTitle "playchess.com"]
[Source "ChessBase"]
[SourceQuality "1"]
[TimeControl "1800+12"]

1. d4 {[%emt 0:00:00]} g6 {[%emt 0:00:00]} 2. c3 {[%emt 0:00:01]} Bg7 {[%emt 0:00:00]} 3. Nf3 {[%emt 0:00:38]} d6 {[%emt 0:00:30]} 4. e4 {[%emt 0:01:06]} Nf6 {[%emt 0:00:29]} 5. Nbd2 {[%emt 0:02:41]} O-O {[%emt 0:00:14]} 6. Be2 {[%emt 0:00:51]} Nbd7 {[%emt 0:01:39]} 7. O-O {[%emt 0:01:02]} e5 {[%emt 0:00:05]} 8. dxe5 {[%emt 0:00:12]} Nxe5 {[%emt 0:00:43]} 9. Nxe5 {[%emt 0:00:32]} dxe5 {[%emt 0:00:03]} 10. a4 {[%emt 0:01:16]} c6 {[%emt 0:01:44]} 11. a5 {[%emt 0:00:31]} Qc7 {[%emt 0:00:09]} 12. Qc2 {[%emt 0:02:09]} Re8 {[%emt 0:00:22]} 13. Nc4 {[%emt 0:02:54]} Be6 {[%emt 0:00:45]} 14. Bg5 {[%emt 0:03:07]} Nd7 {[%emt 0:02:37]} 15. b4 {[%emt 0:01:37]} Nf8 {[%emt 0:00:34]} 16. Rad1 {[%emt 0:03:15]} Bxc4 {[%emt 0:00:36]} 17. Bxc4 {[%emt 0:00:07]} Ne6 {[%emt 0:00:19]} 18. Be3 {[%emt 0:00:10]} Qe7 {[%emt 0:05:51]} 19. f3 {[%emt 0:01:37]} a6 {[%emt 0:01:24]} 20. g3 {[%emt 0:03:18]} Rad8 {[%emt 0:02:45]} 21. Bb6 {[%emt 0:00:19]} Rxd1 {[%emt 0:00:16]} 22. Rxd1 {[%emt 0:00:32]} h5 {[%emt 0:00:32]} 23. Qd2 {[%emt 0:01:08]} Ng5 {[%emt 0:03:32]} 24. Kg2 {[%emt 0:01:07]} Qf6 {[%emt 0:00:24]} 25. Qe2 {[%emt 0:00:36]} h4 {[%emt 0:01:43]} 26. Rd7 {[%emt 0:00:31]} hxg3 {[%emt 0:00:20]} 27. hxg3 {[%emt 0:00:06]} Bf8 {[%emt 0:00:37]} 28. Rxb7 {[%emt 0:00:31]} Qh8 {[%emt 0:00:25]} 29. Kg1 {[%emt 0:01:03]} c5 {[%emt 0:00:32]} 30. Bd5 {[%emt 0:00:27]} cxb4 {[%emt 0:00:15]} 31. cxb4 {[%emt 0:00:23]} Qh5 {[%emt 0:01:54]} 32. Kf2 {[%emt 0:01:17]} Rc8 {[%emt 0:00:28]} 33. f4 {[%emt 0:00:33]} Qh2+ {[%emt 0:00:29]} 34. Ke3 {[%emt 0:00:20]} Qxg3+ {[%emt 0:00:37] Kd4} 0-1

[Event "16th Deltalift Open 2019"]
[Site "Halmstad"]
[Date "2019.05.30"]
[Round "4.10"]
[White "Crevatin, Leo"]
[Black "Cramling Bellon, Anna"]
[Result "1/2-1/2"]
[ECO "E32"]
[WhiteElo "2210"]
[BlackElo "1990"]
[Annotator "ChessBase"]
[PlyCount "86"]
[EventDate "2019.05.30"]
[EventType "swiss"]
[EventCountry "SWE"]
[SourceTitle "playchess.com"]
[Source "ChessBase"]
[SourceQuality "1"]
[TimeControl "1800+12"]

1. d4 {[%emt 0:00:00]} Nf6 {[%emt 0:00:00]} 2. c4 {[%emt 0:00:00]} e6 {[%emt 0:00:00]} 3. Nc3 {[%emt 0:00:00]} Bb4 {[%emt 0:00:01]} 4. Qc2 {[%emt 0:00:00]} b6 {[%emt 0:00:02]} 5. e4 {[%emt 0:00:00]} c5 {[%emt 0:00:02]} 6. d5 {[%emt 0:00:01]} Qe7 {[%emt 0:00:13]} 7. Nge2 {[%emt 0:00:04]} d6 {[%emt 0:00:18]} 8. Bd2 {[%emt 0:00:10]} O-O {[%emt 0:00:28]} 9. O-O-O {[%emt 0:00:50]} Ng4 {[%emt 0:05:09]} 10. Be1 {[%emt 0:00:01]} Na6 {[%emt 0:01:41]} 11. h3 {[%emt 0:02:09]} Ne5 {[%emt 0:03:15]} 12. Ng3 {[%emt 0:00:25]} Bxc3 {[%emt 0:00:56]} 13. Bxc3 {[%emt 0:00:21]} Nb4 {[%emt 0:00:09]} 14. Qb1 {[%emt 0:02:11]} exd5 {[%emt 0:04:25]} 15. exd5 {[%emt 0:00:01]} Qg5+ {[%emt 0:00:48]} 16. Bd2 {[%emt 0:00:13]} Qg6 {[%emt 0:00:03]} 17. Qxg6 {[%emt 0:01:40]} fxg6 {[%emt 0:00:32]} 18. Bxb4 {[%emt 0:00:29]} cxb4 {[%emt 0:00:03]} 19. Ne4 {[%emt 0:00:27]} Rf4 {[%emt 0:03:15]} 20. f3 {[%emt 0:00:41]} Ba6 {[%emt 0:00:47]} 21. b3 {[%emt 0:00:33]} Rd8 {[%emt 0:00:35]} 22. Be2 {[%emt 0:00:44]} h6 {[%emt 0:00:19]} 23. g3 {[%emt 0:00:46]} Rff8 {[%emt 0:00:16]} 24. f4 {[%emt 0:00:06]} Nf7 {[%emt 0:00:04]} 25. Bd3 {[%emt 0:00:41]} g5 {[%emt 0:00:31]} 26. fxg5 {[%emt 0:02:20]} Nxg5 {[%emt 0:01:54]} 27. Nxg5 {[%emt 0:00:03]} hxg5 {[%emt 0:00:01]} 28. Rhf1 {[%emt 0:00:10]} Bc8 {[%emt 0:00:24]} 29. g4 {[%emt 0:00:09]} Rf4 {[%emt 0:00:13]} 30. Rde1 {[%emt 0:02:55]} Rdf8 {[%emt 0:00:31]} 31. Rxf4 {[%emt 0:00:01]} gxf4 {[%emt 0:03:09]} 32. Re7 {[%emt 0:00:25]} Rf7 {[%emt 0:01:12]} 33. Re8+ {[%emt 0:00:04]} Rf8 {[%emt 0:00:02]} 34. Bh7+ {[%emt 0:01:08]} Kf7 {[%emt 0:00:01]} 35. Bg6+ {[%emt 0:00:54]} Kg8 {[%emt 0:00:06]} 36. Re2 {[%emt 0:03:50]} Rf6 {[%emt 0:00:37]} 37. Re8+ {[%emt 0:01:23]} Rf8 {[%emt 0:00:02]} 38. Re7 {[%emt 0:03:52]} a5 {[%emt 0:04:58]} 39. Kd2 {[%emt 0:00:01]} Rf6 {[%emt 0:00:05]} 40. Bd3 {[%emt 0:00:22]} Rf7 {[%emt 0:00:10]} 41. Re1 {[%emt 0:00:56]} g5 {[%emt 0:00:26]} 42. Bg6 {[%emt 0:01:01]} Rf6 {[%emt 0:00:10]} 43. Bd3 {[%emt 0:00:43]} Kf8 {[%emt 0:00:23]} 1/2-1/2

[Event "16th Deltalift Open 2019"]
[Site "Halmstad"]
[Date "2019.05.30"]
[Round "4.11"]
[White "Andersson, Robert"]
[Black "Olund, Joar"]
[Result "0-1"]
[ECO "B10"]
[WhiteElo "2074"]
[BlackElo "2328"]
[Annotator "ChessBase"]
[PlyCount "177"]
[EventDate "2019.05.30"]
[EventType "swiss"]
[EventCountry "SWE"]
[SourceTitle "playchess.com"]
[Source "ChessBase"]
[SourceQuality "1"]
[TimeControl "1800+12"]

1. e4 {[%emt 0:00:00]} c6 {[%emt 0:00:00]} 2. Nf3 {[%emt 0:00:00]} d5 {[%emt 0:00:00]} 3. d3 {[%emt 0:00:00]} g6 {[%emt 0:00:00]} 4. Nbd2 {[%emt 0:00:37]} Bg7 {[%emt 0:00:01]} 5. Be2 {[%emt 0:00:17]} e5 {[%emt 0:00:39]} 6. O-O {[%emt 0:00:12]} Ne7 {[%emt 0:00:49]} 7. c3 {[%emt 0:01:55]} O-O {[%emt 0:00:23]} 8. d4 {[%emt 0:04:38]} exd4 {[%emt 0:00:36]} 9. Nxd4 {[%emt 0:00:14]} Re8 {[%emt 0:01:19]} 10. exd5 {[%emt 0:00:11]} Nxd5 {[%emt 0:00:03]} 11. N2f3 {[%emt 0:00:32]} h6 {[%emt 0:00:07]} 12. Re1 {[%emt 0:00:30]} Nd7 {[%emt 0:00:06]} 13. Bf1 {[%emt 0:00:24]} Nc5 {[%emt 0:03:45]} 14. Rxe8+ {[%emt 0:00:39]} Qxe8 {[%emt 0:00:02]} 15. Bd2 {[%emt 0:02:40]} Bd7 {[%emt 0:01:00]} 16. Qc2 {[%emt 0:00:09]} Qe4 {[%emt 0:00:47]} 17. Re1 {[%emt 0:00:30]} Qxc2 {[%emt 0:00:03]} 18. Nxc2 {[%emt 0:00:03]} Re8 {[%emt 0:00:09]} 19. Rxe8+ {[%emt 0:00:05]} Bxe8 {[%emt 0:00:02]} 20. Bc4 {[%emt 0:00:36]} Nb6 {[%emt 0:00:20]} 21. Be2 {[%emt 0:00:15]} Nca4 {[%emt 0:01:35]} 22. Bc1 {[%emt 0:00:03]} Bd7 {[%emt 0:00:15]} 23. Nfd4 {[%emt 0:01:19]} a6 {[%emt 0:01:20]} 24. Nb3 {[%emt 0:00:22]} Bc8 {[%emt 0:01:30]} 25. Na5 {[%emt 0:02:02]} Nd5 {[%emt 0:00:56]} 26. Bf3 {[%emt 0:00:24]} Ne7 {[%emt 0:00:31]} 27. Ne3 {[%emt 0:01:04]} Nc5 {[%emt 0:03:09]} 28. Be2 {[%emt 0:02:25]} Be5 {[%emt 0:01:19]} 29. Nec4 {[%emt 0:00:35]} Bc7 {[%emt 0:00:06]} 30. Nb3 {[%emt 0:00:36]} Na4 {[%emt 0:01:40]} 31. Bf3 {[%emt 0:03:34]} Kg7 {[%emt 0:00:52]} 32. Nca5 {[%emt 0:03:08]} g5 {[%emt 0:01:39]} 33. g3 {[%emt 0:00:47]} Ng6 {[%emt 0:00:16]} 34. Be4 {[%emt 0:00:37]} Ne5 {[%emt 0:00:47]} 35. f4 {[%emt 0:00:07]} gxf4 {[%emt 0:00:08]} 36. gxf4 {[%emt 0:00:16]} Ng4 {[%emt 0:00:22]} 37. Nc4 {[%emt 0:01:21]} Nf6 {[%emt 0:03:50]} 38. Bc2 {[%emt 0:01:38]} Nb6 {[%emt 0:03:08]} 39. Nxb6 {[%emt 0:00:07]} Bxb6+ {[%emt 0:00:02]} 40. Nd4 {[%emt 0:00:56]} Nd5 41. Kg2 {[%emt 0:00:15]} Kf6 {[%emt 0:00:49]} 42. Bb3 {[%emt 0:00:22]} Ne7 {[%emt 0:00:30]} 43. Be3 {[%emt 0:00:34]} Bc7 {[%emt 0:00:25]} 44. Ne2 {[%emt 0:00:16]} Nf5 {[%emt 0:00:23]} 45. Bf2 {[%emt 0:00:04]} b6 {[%emt 0:01:20]} 46. Bc2 {[%emt 0:00:13]} Be6 {[%emt 0:00:18]} 47. Be4 {[%emt 0:00:07]} Bxa2 {[%emt 0:00:12]} 48. Bxc6 {[%emt 0:00:04]} Bc4 {[%emt 0:00:05]} 49. Ng3 {[%emt 0:00:47]} Nh4+ {[%emt 0:00:47]} 50. Kh3 {[%emt 0:00:04]} Ng6 {[%emt 0:00:14]} 51. Bd4+ {[%emt 0:00:06]} Ke7 {[%emt 0:00:03]} 52. Nf5+ {[%emt 0:00:04]} Kd8 {[%emt 0:00:05]} 53. Bf6+ {[%emt 0:00:11]} Kc8 {[%emt 0:00:01]} 54. Nxh6 {[%emt 0:00:05]} Bxf4 {[%emt 0:00:47]} 55. Ng8 {[%emt 0:00:11]} Bc1 {[%emt 0:00:40]} 56. b4 {[%emt 0:00:03]} a5 {[%emt 0:00:02]} 57. bxa5 {[%emt 0:00:03]} bxa5 58. Ne7+ {[%emt 0:00:05]} Kc7 {[%emt 0:00:23]} 59. Be4 {[%emt 0:00:11]} Nf4+ {[%emt 0:00:25]} 60. Kg4 {[%emt 0:00:08]} Nd3 {[%emt 0:00:29]} 61. Bxd3 {[%emt 0:00:26]} Bxd3 {[%emt 0:00:01]} 62. Be5+ {[%emt 0:00:22]} Kb6 {[%emt 0:00:22]} 63. h4 {[%emt 0:00:07]} a4 {[%emt 0:00:10]} 64. c4 {[%emt 0:00:01]} a3 {[%emt 0:00:07]} 65. Bd4+ {[%emt 0:00:11]} Kb7 {[%emt 0:00:13]} 66. c5 {[%emt 0:00:03]} Bb2 {[%emt 0:00:12]} 67. c6+ {[%emt 0:00:08]} Kc7 {[%emt 0:00:02]} 68. Nd5+ {[%emt 0:00:14]} Kxc6 {[%emt 0:00:27]} 69. Nb4+ {[%emt 0:00:02]} Kd6 {[%emt 0:00:08]} 70. Nxd3 {[%emt 0:00:16]} Bxd4 {[%emt 0:00:02]} 71. Nc1 {[%emt 0:00:06]} Ke7 {[%emt 0:00:11]} 72. Kf5 {[%emt 0:00:07]} Kf8 {[%emt 0:00:06]} 73. Na2 {[%emt 0:00:07]} Kg7 {[%emt 0:00:04]} 74. Nb4 {[%emt 0:00:04]} Kh6 {[%emt 0:00:06]} 75. Kg4 {[%emt 0:00:03]} Kg6 {[%emt 0:00:25]} 76. Na2 {[%emt 0:00:06]} f5+ {[%emt 0:00:11]} 77. Kf4 {[%emt 0:00:06]} Kf6 {[%emt 0:00:03]} 78. Nb4 {[%emt 0:00:11]} Be5+ {[%emt 0:00:00]} 79. Kf3 {[%emt 0:00:04]} Kg6 {[%emt 0:00:01]} 80. Kg2 {[%emt 0:00:10]} Kh5 {[%emt 0:00:02]} 81. Kh3 {[%emt 0:00:01]} Bf6 {[%emt 0:00:07]} 82. Kg3 {[%emt 0:00:21]} Bxh4+ {[%emt 0:00:26]} 83. Kf4 {[%emt 0:00:02]} Kg6 {[%emt 0:00:03]} 84. Na2 {[%emt 0:00:13]} Kf6 {[%emt 0:00:09]} 85. Nc3 {[%emt 0:00:07]} Bg5+ {[%emt 0:00:04]} 86. Kf3 {[%emt 0:00:01]} Ke5 {[%emt 0:00:02]} 87. Ke2 {[%emt 0:00:42]} Bc1 {[%emt 0:00:36]} 88. Kf3 {[%emt 0:00:09]} Bb2 {[%emt 0:00:06]} 89. Na2 {[%emt 0:00:20]} 0-1